fUST/lending_fUST_20250424
["ID","MTS","AMOUNT","RATE_DAILY","PERIOD"]
[358869252,1745500238380,-500.0,0.00019173,2]
[358869254,1745500238392,-500.0,0.00019173,2]
[358869256,1745500238403,-500.0,0.00019173,2]
[358869258,1745500238415,-500.0,0.00019173,2]
[358869260,1745500238427,-500.0,0.00019173,2]
[358869263,1745500238439,-500.0,0.00019173,2]
[358869265,1745500238451,-500.0,0.00019173,2]
[358869267,1745500238462,-500.0,0.00019173,2]
[358869269,1745500238474,-500.0,0.00019173,2]
[358869271,1745500238486,-500.0,0.00019173,2]
[358869273,1745500238497,-500.0,0.00019173,2]
[358869274,1745500238508,-500.0,0.00019173,2]
[358869275,1745500238521,-500.0,0.00019173,2]
[358869276,1745500238534,-500.0,0.00019173,2]
[358869277,1745500238547,-500.0,0.00019178,2]
[358869278,1745500238559,-500.0,0.00019178,2]
[358869279,1745500238571,-502.2594155,0.00019178,2]
[358869280,1745500238582,-500.0,0.00019178,2]
[358869281,1745500238595,-500.0,0.00019178,2]
[358869282,1745500238607,-500.0,0.00019178,2]
[358869283,1745500238619,-501.2635384,0.00019178,2]
[358869284,1745500238631,-500.0,0.00019178,2]
[358869285,1745500238644,-500.0,0.00019178,2]
[358869286,1745500238655,-500.0,0.00019178,2]
[358869287,1745500238667,-500.0,0.00019178,2]
[358869288,1745500238689,-500.0,0.00019178,2]
[358869289,1745500238709,-500.0,0.00019178,2]
[358869290,1745500238725,-500.0,0.00019178,2]
[358869291,1745500238744,-500.0,0.00019178,2]
[358869292,1745500238758,-512.35601815,0.00019178,2]
[358869293,1745500238773,-507.14471791,0.00019178,2]
[358869294,1745500238788,-500.0,0.00019178,2]
[358869295,1745500238804,-500.0,0.00019178,2]
[358869296,1745500238818,-500.0,0.00019178,2]
[358869297,1745500238833,-500.0,0.00019178,2]
[358869298,1745500238848,-500.0,0.00019178,2]
[358869299,1745500238861,-500.0,0.00019178,2]
[358869300,1745500238874,-500.0,0.00019178,2]
[358869301,1745500238887,-500.0,0.00019178,2]
[358869302,1745500238901,-500.0,0.00019178,2]
[358869303,1745500238913,-1216.96,0.00019178,2]
[358869304,1745500238925,-500.0,0.00019178,2]
[358869305,1745500238937,-500.0,0.00019178,2]
[358869306,1745500238950,-500.0,0.00019178,2]
[358869307,1745500238962,-599.37,0.00019178,2]
[358869308,1745500238975,-509.09578497,0.00019178,2]
[358869309,1745500238987,-500.0,0.00019178,2]
[358869310,1745500239000,-1000.0,0.00019178,2]
[358869311,1745500239012,-400.73634668,0.00019178,2]
[358869312,1745500239024,-500.0,0.00019178,2]
[358869313,1745500239037,-501.02104774,0.00019178,2]
[358869314,1745500239051,-500.0,0.00019178,2]
[358869315,1745500239071,-500.0,0.00019178,2]
[358869316,1745500239083,-639.40498532,0.00019178,2]
[358869317,1745500239094,-500.0,0.00019178,2]
[358869318,1745500239106,-500.0,0.00019178,2]
[358869319,1745500239116,-500.0,0.00019178,2]
[358869320,1745500239126,-242.75708961,0.00019178,2]
[358869321,1745500239136,-500.0,0.00019178,2]
[358869322,1745500239147,-466.83377839,0.00019178,2]
[358869323,1745500239158,-501.20866576,0.00019178,2]
[358869324,1745500239168,-500.0,0.00019178,2]
[358869325,1745500239177,-500.0,0.00019178,2]
[358869326,1745500239187,-500.0,0.00019178,2]
[358869327,1745500239196,-514.3,0.00019178,2]
[358869328,1745500239206,-500.0,0.00019178,2]
[358869329,1745500239216,-865.94,0.00019178,2]
[358869332,1745500239491,-500.0,0.00019178,2]
[358869333,1745500239506,-500.0,0.00019178,2]
[358869334,1745500239516,-419.8076554,0.00019178,2]
[358869336,1745500239526,-500.0,0.00019178,2]
[358869337,1745500239536,-275.60695391,0.00019178,2]
[358869338,1745500239546,-500.0,0.00019178,2]
[358869339,1745500239556,-535.27,0.00019178,2]
[358869340,1745500239566,-573.81,0.00019178,2]
[358869341,1745500239575,-500.0,0.00019178,2]
[358869342,1745500239585,-510.60520705,0.00019178,2]
[358869343,1745500239597,-500.0,0.00019178,2]
[358869344,1745500239607,-500.0,0.00019178,2]
[358869345,1745500239617,-500.0,0.00019178,2]
[358869346,1745500239626,-500.0,0.00019178,2]
[358869348,1745500239637,-606.11,0.00019178,2]
[358869349,1745500239648,-500.0,0.00019178,2]
[358869351,1745500239657,-524.65146944,0.00019178,2]
[358869353,1745500239667,-500.0,0.00019178,2]
[358869354,1745500239677,-618.37,0.00019178,2]
[358869355,1745500239687,-500.0,0.00019178,2]
[358869356,1745500239697,-2820.76,0.00019178,2]
[358869357,1745500239707,-500.0,0.00019178,2]
[358869358,1745500239717,-500.0,0.00019178,2]
[358869359,1745500239726,-829.58,0.00019178,2]
[358869360,1745500239736,-500.0,0.00019178,2]
[358869361,1745500239746,-1565.71,0.00019178,2]
[358869362,1745500239756,-500.0,0.00019178,2]
[358869363,1745500239765,-500.0,0.00019178,2]
[358869364,1745500239775,-751.6,0.00019178,2]
[358869365,1745500239785,-500.0,0.00019178,2]
[358869367,1745500239796,-500.0,0.00019178,2]
[358869369,1745500239806,-502.74141632,0.00019178,2]
[358869371,1745500239815,-500.0,0.00019178,2]
[358869373,1745500239825,-506.15298993,0.00019178,2]
[358869375,1745500239835,-716.7,0.00019178,2]
[358869377,1745500239845,-505.19616564,0.00019178,2]
[358869379,1745500239854,-500.0,0.00019178,2]
[358869380,1745500239864,-500.0,0.00019178,2]
[358869381,1745500239873,-500.0,0.00019178,2]
[358869382,1745500239883,-500.0,0.00019178,2]
[358869383,1745500239892,-500.0,0.00019178,2]
[358869384,1745500239902,-500.0,0.00019178,2]
[358869385,1745500239912,-399.0784713,0.00019178,2]
[358869386,1745500239921,-185.65017959,0.00019178,2]
[358869387,1745500239931,-500.0,0.00019178,2]
[358869388,1745500239942,-500.0,0.00019178,2]
[358869389,1745500239951,-500.0,0.00019178,2]
[358869390,1745500239961,-500.0,0.00019178,2]
[358869391,1745500239970,-509.72264243,0.00019178,2]
[358869392,1745500239980,-1033.06,0.00019178,2]
[358869393,1745500239990,-506.67288113,0.00019178,2]
[358869394,1745500239999,-505.18507414,0.00019178,2]
[358869395,1745500240013,-500.0,0.00019178,2]
[358869396,1745500240025,-500.0,0.00019178,2]
[358869397,1745500240036,-500.0,0.00019178,2]
[358869398,1745500240047,-500.0,0.00019178,2]
[358869399,1745500240057,-2414.64,0.00019178,2]
[358869401,1745500240068,-500.0,0.00019178,2]
[358869402,1745500240079,-500.0,0.00019178,2]
[358869404,1745500240089,-500.0,0.00019178,2]
[358869405,1745500240098,-871.18,0.00019178,2]
[358869406,1745500240107,-500.0,0.00019178,2]
[358869407,1745500240117,-566.08,0.00019178,2]
[358869409,1745500240126,-500.0,0.00019178,2]
[358869411,1745500240135,-1246.78,0.00019178,2]
[358869413,1745500240145,-501.62148324,0.00019178,2]
[358869415,1745500240154,-670.91,0.00019178,2]
[358869417,1745500240163,-500.0,0.00019178,2]
[358869419,1745500240172,-504.13450546,0.00019178,2]
[358869421,1745500240181,-500.0,0.00019178,2]
[358869423,1745500240191,-500.0,0.00019178,2]
[358869425,1745500240200,-698.08,0.00019178,2]
[358869427,1745500240209,-662.01,0.00019178,2]
[358869429,1745500240221,-500.0,0.00019178,2]
[358869431,1745500240230,-500.0,0.00019178,2]
[358869433,1745500240239,-500.0,0.00019178,2]
[358869435,1745500240247,-627.15,0.00019178,2]
[358869437,1745500240257,-500.0,0.00019178,2]
[358869439,1745500240267,-500.0,0.00019178,2]
[358869440,1745500240277,-500.0,0.00019178,2]
[358869442,1745500240286,-500.0,0.00019178,2]
[358869444,1745500240295,-500.0,0.00019178,2]
[358869447,1745500240306,-1166.44,0.00019178,2]
[358869448,1745500240316,-1212.64,0.00019178,2]
[358869451,1745500240328,-769.18,0.00019178,2]
[358869452,1745500240339,-602.3823,0.00019178,2]
[358869455,1745500240348,-500.0,0.00019178,2]
[358869456,1745500240358,-500.0,0.00019178,2]
[358869458,1745500240368,-500.0,0.00019178,2]
[358869460,1745500240377,-500.0,0.00019178,2]
[358869462,1745500240386,-1531.37,0.00019178,2]
[358869464,1745500240395,-532.31,0.00019178,2]
[358869467,1745500240406,-500.0,0.00019178,2]
[358869468,1745500240415,-500.0,0.00019178,2]
[358869470,1745500240425,-623.33,0.00019178,2]
[358869472,1745500240435,-500.0,0.00019178,2]
[358869475,1745500240445,-500.0,0.00019178,2]
[358869477,1745500240455,-1089.07,0.00019178,2]
[358869479,1745500240464,-500.0,0.00019178,2]
[358869481,1745500240473,-500.0,0.00019178,2]
[358869483,1745500240482,-500.0,0.00019178,2]
[358869484,1745500240492,-500.0,0.00019178,2]
[358869486,1745500240501,-500.0,0.00019178,2]
[358869488,1745500240510,-500.0,0.00019178,2]
[358869490,1745500240520,-2985.38,0.00019178,2]
[358869492,1745500240529,-707.47,0.00019178,2]
[358869494,1745500240539,-500.0,0.00019178,2]
[358869496,1745500240549,-596.18538446,0.00019178,2]
[358869498,1745500240559,-504.6676617,0.00019178,2]
[358869500,1745500240568,-500.0,0.00019178,2]
[358869502,1745500240579,-1230.93,0.00019178,2]
[358869504,1745500240588,-500.0,0.00019178,2]
[358869506,1745500240597,-500.0,0.00019178,2]
[358869508,1745500240607,-500.0,0.00019178,2]
[358869510,1745500240616,-500.0,0.00019178,2]
[358869512,1745500240625,-500.0,0.00019178,2]
[358869514,1745500240635,-503.31382095,0.00019178,2]
[358869516,1745500240644,-500.0,0.00019178,2]
[358869518,1745500240653,-795.79,0.00019178,2]
[358869520,1745500240662,-500.0,0.00019178,2]
[358869522,1745500240671,-883.9,0.00019178,2]
[358869524,1745500240680,-500.0,0.00019178,2]
[358869526,1745500240689,-500.0,0.00019178,2]
[358869528,1745500240699,-617.88511885,0.00019178,2]
[358869530,1745500240707,-1132.24,0.00019178,2]
[358869532,1745500240716,-504.05371868,0.00019178,2]
[358869534,1745500240726,-504.18676747,0.00019178,2]
[358869536,1745500240735,-500.0,0.00019178,2]
[358869538,1745500240744,-500.0,0.00019178,2]
[358869540,1745500240754,-500.0,0.00019178,2]
[358869541,1745500240765,-500.0,0.00019178,2]
[358869543,1745500240775,-500.0,0.00019178,2]
[358869546,1745500240785,-742.51,0.00019178,2]
[358869548,1745500240796,-500.0,0.00019178,2]
[358869550,1745500240806,-500.0,0.00019178,2]
[358869552,1745500240815,-694.98,0.00019178,2]
[358869553,1745500240825,-518.42208749,0.00019178,2]
[358869555,1745500240835,-500.0,0.00019178,2]
[358869557,1745500240844,-1711.98,0.00019178,2]
[358869558,1745500240853,-500.0,0.00019178,2]
[358869559,1745500240862,-277.55965147,0.00019178,2]
[358869561,1745500240872,-1033.91,0.00019178,2]
[358869563,1745500240881,-502.87061232,0.00019178,2]
[358869564,1745500240891,-500.0,0.00019178,2]
[358869566,1745500240900,-500.0,0.00019178,2]
[358869567,1745500240909,-500.0,0.00019178,2]
[358869569,1745500240919,-500.0,0.00019178,2]
[358869570,1745500240929,-500.0,0.00019178,2]
[358869572,1745500240939,-700.79,0.00019178,2]
[358869573,1745500240948,-500.0,0.00019178,2]
[358869575,1745500240957,-500.0,0.00019178,2]
[358869576,1745500240967,-500.0,0.00019178,2]
[358869578,1745500240977,-682.07,0.00019178,2]
[358869579,1745500240986,-500.0,0.00019178,2]
[358869581,1745500240995,-500.0,0.00019178,2]
[358869582,1745500241004,-500.0,0.00019178,2]
[358869584,1745500241013,-508.63017885,0.00019178,2]
[358869585,1745500241023,-500.0,0.00019178,2]
[358869587,1745500241032,-543.76,0.00019178,2]
[358869588,1745500241041,-500.0,0.00019178,2]
[358869590,1745500241050,-503.29216947,0.00019178,2]
[358869591,1745500241060,-500.0,0.00019178,2]
[358869593,1745500241070,-500.0,0.00019178,2]
[358869595,1745500241079,-505.54069586,0.00019178,2]
[358869596,1745500241088,-500.0,0.00019178,2]
[358869598,1745500241097,-500.0,0.00019178,2]
[358869599,1745500241107,-500.0,0.00019178,2]
[358869601,1745500241116,-500.0,0.00019178,2]
[358869602,1745500241125,-500.0,0.00019178,2]
[358869604,1745500241134,-503.34243995,0.00019178,2]
[358869606,1745500241143,-500.0,0.00019178,2]
[358869607,1745500241152,-500.0,0.00019178,2]
[358869609,1745500241161,-500.0,0.00019178,2]
[358869610,1745500241170,-500.0,0.00019178,2]
[358869612,1745500241180,-500.0,0.00019178,2]
[358869614,1745500241190,-500.0,0.00019178,2]
[358869615,1745500241199,-820.53,0.00019178,2]
[358869617,1745500241208,-500.0,0.00019178,2]
[358869618,1745500241219,-245.04110683,0.00019178,2]
[358869620,1745500241229,-1765.51,0.00019178,2]
[358869622,1745500241238,-500.0,0.00019178,2]
[358869623,1745500241247,-503.10909015,0.00019178,2]
[358869624,1745500241256,-500.0,0.00019178,2]
[358869626,1745500241266,-607.65,0.00019178,2]
[358869628,1745500241275,-500.0,0.00019178,2]
[358869629,1745500241284,-1342.34,0.00019178,2]
[358869631,1745500241293,-500.0,0.00019178,2]
[358869632,1745500241304,-500.0,0.00019178,2]
[358869634,1745500241313,-932.91,0.00019178,2]
[358869636,1745500241322,-500.0,0.00019178,2]
[358869637,1745500241331,-500.0,0.00019178,2]
[358869639,1745500241341,-500.0,0.00019178,2]
[358869641,1745500241350,-516.36,0.00019178,2]
[358869642,1745500241359,-500.0,0.00019178,2]
[358869644,1745500241368,-500.0,0.00019178,2]
[358869646,1745500241379,-500.0,0.00019178,2]
[358869647,1745500241388,-500.0,0.00019178,2]
[358869649,1745500241399,-1021.71,0.00019178,2]
[358869650,1745500241408,-151.0,0.00019178,2]
[358869652,1745500241417,-500.0,0.00019178,2]
[358869654,1745500241427,-502.1,0.00019178,2]
[358869655,1745500241436,-500.0,0.00019178,2]
[358869657,1745500241445,-500.0,0.00019178,2]
[358869659,1745500241455,-500.0,0.00019178,2]
[358869660,1745500241465,-6345.38,0.00019178,2]
[358869662,1745500241475,-500.0,0.00019178,2]
[358869663,1745500241484,-500.0,0.00019178,2]
[358869665,1745500241493,-572.54,0.00019178,2]
[358869667,1745500241503,-500.0,0.00019178,2]
[358869668,1745500241512,-854.32,0.00019178,2]
[358869670,1745500241521,-500.0,0.00019178,2]
[358869671,1745500241531,-3044.58,0.00019178,2]
[358869673,1745500241540,-3954.18,0.00019178,2]
[358869675,1745500241549,-1631.32,0.00019178,2]
[358869676,1745500241558,-500.0,0.00019178,2]
[358869678,1745500241567,-1397.45,0.00019178,2]
[358869680,1745500241577,-500.0,0.00019178,2]
[358869681,1745500241586,-515.64641614,0.00019178,2]
[358869683,1745500241595,-534.96,0.00019178,2]
[358869684,1745500241604,-1104.15,0.00019178,2]
[358869686,1745500241613,-842.51,0.00019178,2]
[358869688,1745500241622,-534.65,0.00019178,2]
[358869689,1745500241631,-500.0,0.00019178,2]
[358869691,1745500241640,-1104.1,0.00019178,2]
[358869692,1745500241649,-790.59,0.00019178,2]
[358869694,1745500241658,-607.15538036,0.00019178,2]
[358869695,1745500241667,-508.14850248,0.00019178,2]
[358869697,1745500241677,-1061.56,0.00019178,2]
[358869699,1745500241687,-500.0,0.00019178,2]
[358869700,1745500241697,-3837.3,0.00019178,2]
[358869702,1745500241707,-593.93519418,0.00019178,2]
[358869704,1745500241716,-500.0,0.00019178,2]
[358869705,1745500241725,-500.0,0.00019178,2]
[358869707,1745500241734,-500.0,0.00019178,2]
[358869708,1745500241743,-500.0,0.00019178,2]
[358869710,1745500241753,-500.0,0.00019178,2]
[358869712,1745500241762,-1611.32,0.00019178,2]
[358869713,1745500241771,-849.04,0.00019178,2]
[358869715,1745500241781,-500.0,0.00019178,2]
[358869716,1745500241790,-500.0,0.00019178,2]
[358869718,1745500241799,-500.0,0.00019178,2]
[358869720,1745500241809,-508.83018846,0.00019178,2]
[358869721,1745500241818,-500.0,0.00019178,2]
[358869723,1745500241827,-500.0,0.00019178,2]
[358869725,1745500241837,-260.82011822,0.00019178,2]
[358869726,1745500241846,-500.0,0.00019178,2]
[358869728,1745500241855,-504.5770294,0.00019178,2]
[358869729,1745500241864,-500.0,0.00019178,2]
[358869731,1745500241874,-500.0,0.00019178,2]
[358869733,1745500241883,-500.0,0.00019178,2]
[358869734,1745500241892,-500.0,0.00019178,2]
[358869736,1745500241901,-500.0,0.00019178,2]
[358869737,1745500241911,-601.39,0.00019178,2]
[358869739,1745500241920,-1322.46,0.00019178,2]
[358869741,1745500241930,-500.0,0.00019178,2]
[358869742,1745500241940,-500.0,0.00019178,2]
[358869744,1745500241949,-500.0,0.00019178,2]
[358869745,1745500241958,-500.0,0.00019178,2]
[358869747,1745500241968,-500.0,0.00019178,2]
[358869749,1745500241977,-500.0,0.00019178,2]
[358869750,1745500241986,-167.32404216,0.00019178,2]
[358869752,1745500241995,-500.0,0.00019178,2]
[358869754,1745500242005,-558.02053089,0.00019178,2]
[358869755,1745500242014,-500.0,0.00019178,2]
[358869757,1745500242024,-500.0,0.00019178,2]
[358869758,1745500242034,-500.0,0.00019178,2]
[358869760,1745500242043,-500.45262469,0.00019178,2]
[358869762,1745500242053,-500.0,0.00019178,2]
[358869763,1745500242061,-500.0,0.00019178,2]
[358869765,1745500242071,-500.0,0.00019178,2]
[358869766,1745500242080,-500.0,0.00019178,2]
[358869768,1745500242089,-500.0,0.00019178,2]
[358869770,1745500242099,-1089.28,0.00019178,2]
[358869771,1745500242108,-503.23625298,0.00019178,2]
[358869773,1745500242118,-151.0,0.00019178,2]
[358869774,1745500242127,-500.0,0.00019178,2]
[358869776,1745500242137,-500.0,0.00019178,2]
[358869778,1745500242146,-1359.48,0.00019178,2]
[358869779,1745500242155,-615.66,0.00019178,2]
[358869781,1745500242164,-500.0,0.00019178,2]
[358869782,1745500242175,-543.44,0.00019178,2]
[358869784,1745500242184,-500.0,0.00019178,2]
[358869786,1745500242194,-500.0,0.00019178,2]
[358869787,1745500242203,-743.02,0.00019178,2]
[358869789,1745500242212,-968.05,0.00019178,2]
[358869791,1745500242225,-500.0,0.00019178,2]
[358869792,1745500242234,-500.0,0.00019178,2]
[358869794,1745500242243,-500.0,0.00019178,2]
[358869795,1745500242253,-500.0,0.00019178,2]
[358869797,1745500242262,-500.0,0.00019178,2]
[358869799,1745500242271,-796.33,0.00019178,2]
[358869800,1745500242280,-507.00802912,0.00019178,2]
[358869802,1745500242289,-5572.45,0.00019178,2]
[358869803,1745500242299,-987.73,0.00019178,2]
[358869805,1745500242308,-4553.6,0.00019178,2]
[358869807,1745500242317,-500.0,0.00019178,2]
[358869808,1745500242327,-500.0,0.00019178,2]
[358869810,1745500242336,-4117.4,0.00019178,2]
[358869812,1745500242346,-539.06,0.00019178,2]
[358869813,1745500242356,-884.2,0.00019178,2]
[358869815,1745500242365,-500.0,0.00019178,2]
[358869816,1745500242375,-500.0,0.00019178,2]
[358869818,1745500242384,-500.0,0.00019178,2]
[358869820,1745500242394,-500.0,0.00019178,2]
[358869821,1745500242403,-500.0,0.00019178,2]
[358869823,1745500242412,-500.0,0.00019178,2]
[358869824,1745500242421,-463.90463715,0.00019178,2]
[358869826,1745500242431,-1338.62,0.00019178,2]
[358869828,1745500242442,-500.0,0.00019178,2]
[358869829,1745500242451,-500.0,0.00019178,2]
[358869831,1745500242461,-500.0,0.00019178,2]
[358869832,1745500242470,-266.99875747,0.00019178,2]
[358869834,1745500242479,-500.0,0.00019178,2]
[358869836,1745500242488,-909.83,0.00019178,2]
[358869837,1745500242498,-4107.91,0.00019178,2]
[358869839,1745500242508,-503.76834141,0.00019178,2]
[358869840,1745500242518,-500.0,0.00019178,2]
[358869842,1745500242527,-500.0,0.00019178,2]
[358869844,1745500242537,-500.0,0.00019178,2]
[358869845,1745500242547,-500.0,0.00019178,2]
[358869847,1745500242556,-500.0,0.00019178,2]
[358869849,1745500242566,-4017.74,0.00019178,2]
[358869850,1745500242575,-500.0,0.00019178,2]
[358869852,1745500242584,-8750.1,0.00019178,2]
[358869853,1745500242594,-500.0,0.00019178,2]
[358869855,1745500242604,-500.0,0.00019178,2]
[358869857,1745500242615,-500.0,0.00019178,2]
[358869858,1745500242625,-1101.84,0.00019178,2]
[358869860,1745500242634,-500.0,0.00019178,2]
[358869862,1745500242644,-505.60450518,0.00019178,2]
[358869863,1745500242654,-504.87985386,0.00019178,2]
[358869865,1745500242664,-687.61,0.00019178,2]
[358869867,1745500242674,-3320.64,0.00019178,2]
[358869877,1745500242828,-974.44,0.00019178,2]
[358869879,1745500242838,-576.39645204,0.00019178,2]
[358869881,1745500242848,-796.92,0.00019178,2]
[358869882,1745500242857,-865.64,0.00019178,2]
[358869884,1745500242867,-504.30502543,0.00019178,2]
[358869886,1745500242876,-500.0,0.00019178,2]
[358869887,1745500242886,-500.0,0.00019178,2]
[358869889,1745500242895,-931.38,0.00019178,2]
[358869891,1745500242905,-500.0,0.00019178,2]
[358869892,1745500242914,-500.0,0.00019178,2]
[358869894,1745500242924,-500.0,0.00019178,2]
[358869896,1745500242934,-505.9188295,0.00019178,2]
[358869897,1745500242945,-500.0,0.00019178,2]
[358869899,1745500242955,-502.59668745,0.00019178,2]
[358869900,1745500242964,-519.09,0.00019178,2]
[358869902,1745500242974,-612.13,0.00019178,2]
[358869904,1745500242983,-504.4368688,0.00019178,2]
[358869905,1745500242993,-500.0,0.00019178,2]
[358869907,1745500243003,-500.0,0.00019178,2]
[358869909,1745500243012,-500.0,0.00019178,2]
[358869910,1745500243021,-4260.35,0.00019178,2]
[358869912,1745500243031,-500.0,0.00019178,2]
[358869914,1745500243040,-965.66,0.00019178,2]
[358869915,1745500243050,-503.91690168,0.00019178,2]
[358869917,1745500243059,-500.0,0.00019178,2]
[358869918,1745500243068,-785.28,0.00019178,2]
[358869920,1745500243078,-500.0,0.00019178,2]
[358869922,1745500243087,-500.0,0.00019178,2]
[358869923,1745500243096,-500.0,0.00019178,2]
[358869925,1745500243105,-500.0,0.00019178,2]
[358869927,1745500243114,-500.0,0.00019178,2]
[358869928,1745500243123,-500.0,0.00019178,2]
[358869930,1745500243132,-738.1,0.00019178,2]
[358869932,1745500243142,-500.0,0.00019178,2]
[358869933,1745500243151,-500.0,0.00019178,2]
[358869935,1745500243160,-502.2314393,0.00019178,2]
[358869937,1745500243169,-502.88738888,0.00019178,2]
[358869938,1745500243178,-510.87734503,0.00019178,2]
[358869940,1745500243187,-504.93828522,0.00019178,2]
[358869942,1745500243197,-500.0,0.00019178,2]
[358869943,1745500243206,-500.0,0.00019178,2]
[358869945,1745500243217,-500.0,0.00019178,2]
[358869947,1745500243229,-500.0,0.00019178,2]
[358869948,1745500243239,-1426.07456603,0.00019178,2]
[358869951,1745500243261,-2773.43543397,0.00019178,2]
[358869952,1745500243271,-500.0,0.00019178,2]
[358869954,1745500243281,-500.0,0.00019178,2]
[358869956,1745500243290,-300.0,0.00019178,2]
[358869957,1745500243301,-500.0,0.00019233,2]
[358869959,1745500243311,-151.0,0.00019233,2]
[358869960,1745500243321,-208.64182819,0.00019259,2]
[358869962,1745500243330,-255.0,0.00019288,2]
[358869964,1745500243339,-218.24766045,0.00019288,2]
[358869965,1745500243349,-160.0,0.00019288,2]
[358869967,1745500243359,-160.0,0.00019288,2]
[358869969,1745500243368,-160.0,0.00019288,2]
[358869970,1745500243378,-840.0731918,0.00019294,2]
[358869972,1745500243387,-160.0,0.00019294,2]
[358869973,1745500243396,-1993.20188559,0.00019294,2]
[358869975,1745500243410,-10583.29297963,0.00019294,2]
[358869977,1745500243419,-420.89490186,0.00019294,2]
[358869979,1745500243429,-160.0,0.00019294,2]
[358869981,1745500243438,-160.0,0.00019294,2]
[358869983,1745500243448,-151.0,0.00019334,2]
[358869985,1745500243458,-170.584,0.00019342,2]
[358869987,1745500243467,-208.64182819,0.00019352,2]
[358869988,1745500243476,-160.0,0.00019451,3]
[358869989,1745500243486,-840.0731918,0.00019451,3]
[358869990,1745500243495,-12576.49486522,0.00019451,3]
[358869991,1745500243505,-282377.40627705,0.00019452,2]
[358869992,1745500243514,-26574.60436597,0.00019452,3]
[358869993,1745500243524,-257.87991511,0.00019452,2]
[358869994,1745500243534,-151.0,0.00019452,2]
[358869995,1745500243543,-151.0,0.00019452,2]
[358869996,1745500243553,-151.0,0.00019452,2]
[358869997,1745500243562,-151.0,0.00019452,2]
[358869998,1745500243572,-151.0,0.00019452,2]
[358869999,1745500243581,-151.0,0.00019452,2]
[358870000,1745500243591,-500.0,0.00019452,2]
[358870001,1745500243601,-151.0,0.00019452,2]
[358870002,1745500243610,-151.0,0.00019452,2]
[358870003,1745500243619,-504.53398228,0.00019452,2]
[358870004,1745500243629,-208.45867133,0.00019452,2]
[358870005,1745500243638,-500.0,0.00019452,2]
[358870006,1745500243647,-500.0,0.00019452,2]
[358870007,1745500243657,-500.0,0.00019452,2]
[358870008,1745500243666,-482.82358185,0.00019452,2]
[358870009,1745500243676,-500.0,0.00019452,2]
[358870010,1745500243686,-500.0,0.00019452,2]
[358870011,1745500243696,-500.0,0.00019452,2]
[358870012,1745500243706,-500.0,0.00019452,2]
[358870013,1745500243715,-1216.96,0.00019452,2]
[358870014,1745500243724,-500.0,0.00019452,2]
[358870015,1745500243734,-399.85441223,0.00019452,2]
[358870016,1745500243743,-500.0,0.00019452,2]
[358870017,1745500243752,-599.37,0.00019452,2]
[358870018,1745500243762,-500.0,0.00019452,2]
[358870019,1745500243771,-500.0,0.00019452,2]
[358870020,1745500243780,-500.0,0.00019452,2]
[358870021,1745500243789,-151.0,0.00019452,2]